bitfinex/quotes_SOLUSD_20241213
["timestamp","ask_amount","ask_price","bid_price","bid_amount"]
[1734069031169,9.82998913,226.05,225.99,8.25628913]
[1734069031671,1.5737,226.05,226.01,8.25628913]
[1734069032292,1.5737,226.05,226.0,8.25628913]
[1734069033080,1.5737,226.05,225.99,8.25628913]
[1734069033272,1.5737,226.05,225.98,0.5435078]
[1734069033273,9.82998913,226.05,225.98,8.79979693]
[1734069033971,9.82998913,226.05,225.99,8.25628913]
[1734069034192,9.82998913,226.05,225.98,8.79979693]
[1734069035299,8.25628913,226.04,225.98,0.5435078]
[1734069036381,8.25628913,226.04,225.98,8.79979693]
[1734069042392,8.25628913,226.04,225.98,0.5435078]
[1734069043400,1.5737,226.05,226.0,8.25628913]
[1734069044195,8.25628913,226.08,226.0,8.25628913]
[1734069044903,21.65,226.1,226.01,8.25628913]
[1734069045107,8.25628913,226.08,226.01,8.25628913]
[1734069045402,8.25628913,226.07,226.0,8.25628913]
[1734069046210,8.25628913,226.07,225.98,0.5435078]
[1734069046380,8.25628913,226.07,226.0,8.25628913]
[1734069046976,8.25628913,226.08,226.01,8.25628913]
[1734069048107,8.25628913,226.09,226.02,8.25628913]
[1734069050106,21.65,226.1,225.98,1.20706645]
[1734069050107,9.90628913,226.1,226.03,8.25628913]
[1734069050284,8.25628913,226.09,226.03,8.25628913]
[1734069055981,8.25628913,226.09,226.02,8.25628913]
[1734069058204,8.25628913,226.09,226.03,8.25628913]
[1734069058415,8.25628913,226.09,225.99,11.72552513]
[1734069058606,8.25628913,226.09,226.03,8.25628913]
[1734069061586,9.90628913,226.1,226.03,8.25628913]
[1734069063729,8.25628913,226.09,225.99,11.72552513]
[1734069063885,1.65,226.1,226.03,8.25628913]
[1734069064216,1.65,226.1,226.04,8.25628913]
[1734069068831,9.90628913,226.1,226.03,8.25628913]
[1734069074602,9.90628913,226.1,225.99,11.72552513]
[1734069074812,9.90628913,226.1,226.03,8.25628913]
[1734069077109,8.25628913,226.06,225.98,0.5435078]
[1734069077317,8.25628913,225.99,225.98,0.5435078]
[1734069079008,13.17060297,226.01,225.98,0.5435078]
[1734069079216,8.25628913,225.99,225.98,0.5435078]
[1734069083919,32.15866313,225.99,225.98,0.5435078]
[1734069084117,36.37519829,225.99,225.98,0.5435078]
[1734069085833,24.21653516,225.99,225.98,0.5435078]
[1734069086041,32.47282429,225.99,225.98,0.5435078]
[1734069086418,24.21653516,225.99,225.98,0.5435078]
[1734069086618,32.47282429,225.99,225.98,0.5435078]
[1734069087918,4.21653516,225.99,225.98,0.5435078]
[1734069088109,12.47282429,225.99,225.98,0.5435078]
[1734069092122,32.47282429,225.99,225.98,0.5435078]
[1734069093046,7.5385,226.01,225.98,0.5435078]
[1734069093248,8.25628913,225.99,225.98,0.5435078]
[1734069093833,7.5385,226.01,225.98,0.5435078]
[1734069093834,1.5021,226.01,225.98,0.5435078]
[1734069094146,9.75838913,226.01,225.98,0.5435078]
[1734069095655,8.25628913,226.0,225.98,0.5435078]
[1734069096829,9.75838913,226.01,225.98,0.5435078]
[1734069097068,8.25628913,226.0,225.98,0.5435078]
[1734069098747,9.75838913,226.01,225.98,0.5435078]
[1734069100370,8.25628913,226.02,225.98,0.5435078]
[1734069100658,8.25628913,226.01,225.98,0.5435078]
[1734069103060,8.25628913,226.0,225.98,0.5435078]
[1734069105553,8.25628913,225.99,225.98,0.5435078]
[1734069108462,23.902374,226.04,225.98,0.5435078]
[1734069108463,20.0,226.01,225.98,0.5435078]
[1734069108973,6.43704918,226.05,225.98,0.5435078]
[1734069109268,8.25628913,226.01,225.98,0.5435078]
[1734069109437,6.48782969,226.06,225.98,0.5435078]
[1734069109639,8.25628913,226.0,225.98,0.5435078]
[1734069112255,8.25628913,225.99,225.98,0.5435078]
[1734069119966,1.5535,226.01,225.98,0.5435078]
[1734069119967,21.5535,226.01,225.98,0.5435078]
[1734069120171,8.25628913,225.99,225.98,0.5435078]
[1734069122880,20.0,226.0,225.98,0.5435078]
[1734069123190,8.25628913,225.99,225.98,0.5435078]
[1734069124071,35.58575578,225.99,225.98,0.5435078]
[1734069124272,38.64649282,225.99,225.98,0.5435078]
[1734069125361,38.64649282,225.99,225.84,8.2366]
[1734069125362,20.0,225.95,225.84,8.2366]
[1734069125571,8.25628913,225.91,225.85,8.25628913]
[1734069125954,20.0,225.95,225.84,8.2366]
[1734069125955,8.25628913,225.9,225.84,8.2366]
[1734069126160,20.0,225.95,225.82,8.25628913]
[1734069126161,8.25628913,225.88,225.82,8.25628913]
[1734069126379,33.15064652,225.94,225.81,8.25628913]
[1734069126380,8.25628913,225.87,225.81,8.25628913]
[1734069126981,8.25628913,225.88,225.82,8.25628913]
[1734069127389,8.25628913,225.85,225.79,6.6005]
[1734069127569,8.25628913,225.85,225.79,14.85678913]
[1734069128070,20.0,225.91,225.79,14.85678913]
[1734069128264,8.25628913,225.85,225.79,6.6005]
[1734069128679,8.25628913,225.85,225.79,14.85678913]
[1734069131093,8.25628913,225.86,225.8,8.25628913]
[1734069133476,21.6418,225.93,225.82,8.25628913]
[1734069133698,8.25628913,225.89,225.83,8.25628913]
[1734069134075,6.48782969,225.95,225.86,8.25628913]
[1734069134291,8.25628913,225.93,225.8,11.73586046]
[1734069134502,8.25628913,225.93,225.87,8.25628913]
[1734069136407,8.25628913,225.93,225.86,8.25628913]
[1734069137480,8.25628913,225.93,225.87,8.25628913]
[1734069137677,1.5663,225.98,225.87,8.25628913]
[1734069137876,8.25628913,225.93,225.87,8.25628913]
[1734069138697,20.0,225.96,225.88,8.25628913]
[1734069138900,8.25628913,225.95,225.89,8.25628913]
[1734069139871,1.5663,225.98,225.9,8.25628913]
[1734069140086,6.48782969,226.0,225.93,8.25628913]
[1734069140284,8.25628913,225.99,225.93,8.25628913]
[1734069140486,8.25628913,226.0,225.93,8.25628913]
[1734069140776,1.6355,226.03,225.92,8.25628913]
[1734069140777,8.25628913,225.98,225.92,8.25628913]
[1734069142911,8.25628913,226.0,225.94,8.25628913]
[1734069149895,8.25628913,225.99,225.94,8.25628913]
[1734069150416,8.25628913,225.97,225.87,7.14422679]
[1734069150716,8.25628913,225.96,225.9,8.25628913]
[1734069151592,8.25628913,225.95,225.89,8.25628913]
[1734069152000,8.25628913,225.94,225.88,8.25628913]
[1734069152203,8.25628913,225.95,225.88,8.25628913]
[1734069153987,8.25628913,225.92,225.86,8.25628913]
[1734069154287,8.25628913,225.91,225.85,9.82838913]
[1734069156104,8.25628913,225.92,225.86,8.25628913]
[1734069159193,8.25628913,225.92,225.87,8.25628913]
[1734069159614,8.25628913,225.92,225.86,8.25628913]
[1734069160111,20.0,225.96,225.86,8.25628913]
[1734069160293,8.25628913,225.92,225.86,8.25628913]
[1734069160693,20.0,225.96,225.87,8.25628913]
[1734069160694,8.25628913,225.93,225.87,8.25628913]
[1734069162094,8.25628913,225.94,225.88,8.25628913]
[1734069163608,8.25628913,225.93,225.87,8.25628913]
[1734069163803,8.25628913,225.96,225.86,0.66404149]
[1734069164016,8.25628913,225.97,225.9,8.25628913]
[1734069164396,8.25628913,225.96,225.9,8.25628913]
[1734069164723,20.0,225.98,225.89,8.25628913]
[1734069164724,8.25628913,225.95,225.89,8.25628913]
[1734069169225,8.25628913,225.94,225.88,8.25628913]
[1734069170701,20.0,225.98,225.9,8.25628913]
[1734069170916,8.25628913,225.96,225.9,8.25628913]
[1734069171402,20.0,225.98,225.9,8.25628913]
[1734069171603,8.25628913,225.96,225.9,8.25628913]
[1734069172714,8.25628913,225.97,225.91,8.25628913]
[1734069173316,1.5005,226.0,225.86,0.6639553]
[1734069173499,8.25628913,226.02,225.96,8.25628913]
[1734069175925,7.7352,226.06,225.96,8.25628913]
[1734069176227,8.25628913,226.02,225.96,8.25628913]
[1734069177314,20.0,226.04,225.96,8.25628913]
[1734069177529,8.25628913,226.02,225.96,8.25628913]
[1734069178210,8.25628913,226.03,225.97,8.25628913]
[1734069178408,26.784105,226.08,225.98,8.25628913]
[1734069178607,8.25628913,226.05,225.99,8.25628913]
[1734069178810,8.25628913,226.06,225.99,8.25628913]
[1734069179411,8.25628913,226.07,226.01,8.25628913]
[1734069180038,8.25628913,226.05,225.95,6.2851]
[1734069180329,8.25628913,226.04,225.98,8.25628913]
[1734069180727,20.29627531,226.08,225.98,8.25628913]
[1734069180934,8.25628913,226.05,225.98,8.25628913]
[1734069181436,8.25628913,226.04,225.98,8.25628913]
[1734069182018,8.25628913,226.05,225.98,8.25628913]
[1734069182406,8.25628913,226.05,225.99,8.25628913]
[1734069187111,8.25628913,226.05,225.98,8.25628913]
[1734069187513,8.25628913,226.05,225.99,8.25628913]
[1734069190730,8.25628913,226.05,225.95,6.94879697]
[1734069190939,8.25628913,226.02,225.96,8.25628913]
[1734069191333,8.25628913,226.01,225.95,14.54138913]
[1734069192626,8.25628913,226.01,225.95,8.25628913]
[1734069193825,20.0,226.04,225.96,8.25628913]
[1734069194040,8.25628913,226.02,225.96,8.25628913]
[1734069195030,20.0,226.04,225.99,8.25628913]
[1734069195230,8.25628913,226.06,226.0,8.25628913]
[1734069195842,20.29627531,226.08,226.02,8.25628913]
[1734069196048,20.29627531,226.08,225.97,6.0963]
[1734069196049,20.29627531,226.08,226.03,8.25628913]
[1734069198638,28.55256444,226.08,226.02,8.25628913]
[1734069199454,8.25628913,226.08,226.02,8.25628913]
[1734069200051,8.25628913,226.09,226.02,8.25628913]
[1734069200748,8.25628913,226.09,226.03,8.25628913]
[1734069202132,8.25628913,226.09,226.02,8.25628913]
[1734069202844,8.25628913,226.09,226.03,8.25628913]
[1734069203530,8.25628913,226.09,225.98,0.66358661]
[1734069203531,6.48782969,226.15,226.06,8.25628913]
[1734069203849,8.25628913,226.14,226.08,8.25628913]
[1734069204057,8.25628913,226.16,226.09,8.25628913]
[1734069204553,8.25628913,226.15,226.04,6.3436]
[1734069204852,8.25628913,226.14,226.08,8.25628913]
[1734069206260,8.25628913,226.15,226.08,8.25628913]
[1734069207550,8.25628913,226.14,226.08,8.25628913]
[1734069208462,8.25628913,226.13,226.07,8.25628913]
[1734069211258,8.25628913,226.14,226.07,8.25628913]
[1734069212763,20.0,226.17,226.1,8.25628913]
[1734069213065,28.25628913,226.17,226.11,8.25628913]
[1734069213265,28.25628913,226.17,226.1,8.25628913]
[1734069213266,8.25628913,226.16,226.1,8.25628913]
[1734069216754,8.25628913,226.16,226.05,33.68853967]
[1734069216958,8.25628913,226.16,226.05,0.66338315]
[1734069217168,8.25628913,226.15,226.09,8.25628913]
[1734069217939,8.25628913,226.12,226.04,6.3436]
[1734069218140,8.25628913,226.11,226.05,8.25628913]
[1734069218447,8.25628913,226.1,226.04,8.25628913]
[1734069221965,8.25628913,226.11,226.04,8.25628913]
[1734069222139,8.25628913,226.11,226.05,8.25628913]
[1734069222761,8.25628913,226.12,226.06,8.25628913]
[1734069223067,20.0,226.13,226.06,8.25628913]
[1734069223254,8.25628913,226.12,226.06,8.25628913]
[1734069224577,8.25628913,226.12,226.05,8.25628913]
[1734069226362,8.25628913,226.12,226.06,8.25628913]
[1734069232424,0.12549,226.15,226.02,2.23850999]
[1734069232425,0.12549,226.16,226.09,8.25628913]
[1734069232672,8.25628913,226.15,226.09,8.25628913]
[1734069233245,8.25628913,226.15,226.08,8.25628913]
[1734069233670,8.25628913,226.14,226.08,8.25628913]
[1734069233883,8.25628913,226.15,226.09,8.25628913]
[1734069237382,8.25628913,226.16,226.09,8.25628913]
[1734069237587,8.25628913,226.16,226.1,8.25628913]
[1734069238884,8.25628913,226.16,226.05,0.66336207]
[1734069239091,8.25628913,226.14,226.08,8.25628913]
[1734069245312,8.25628913,226.13,226.07,8.25628913]
[1734069250415,8.25628913,226.14,226.07,8.25628913]
[1734069252511,8.25628913,226.13,226.07,8.25628913]
[1734069256809,8.25628913,226.14,226.07,8.25628913]
[1734069257403,8.25628913,226.14,226.02,22.23847028]
[1734069257404,8.25628913,226.12,226.02,1.575]
[1734069257603,8.25628913,226.11,226.05,8.25628913]
[1734069258993,8.25628913,226.1,226.03,8.25628913]
[1734069259605,8.25628913,226.09,226.03,8.25628913]
[1734069260514,8.25628913,226.06,226.0,8.25628913]
[1734069261320,8.25628913,226.06,226.01,8.25628913]
[1734069261614,8.25628913,226.06,225.99,6.2177]
[1734069261931,8.25628913,226.06,226.01,8.25628913]
[1734069262492,8.25628913,226.07,226.01,8.25628913]
[1734069269224,8.25628913,226.05,225.98,1.5106]
[1734069269407,8.25628913,226.05,225.99,8.25628913]
[1734069269604,8.25628913,226.02,225.94,6.4016]
[1734069269802,8.25628913,226.01,225.95,8.25628913]
[1734069271803,8.25628913,226.01,225.94,6.4016]
[1734069271804,8.25628913,226.01,225.94,14.65788913]
[1734069273221,8.25628913,226.01,225.94,8.25628913]
[1734069275216,8.25628913,226.0,225.94,8.25628913]
[1734069275806,8.25628913,225.99,225.93,9.83678913]
[1734069276216,8.25628913,226.0,225.94,8.25628913]
[1734069277443,20.0,226.03,225.95,8.25628913]
[1734069277604,8.25628913,226.01,225.95,8.25628913]
[1734069278619,8.25628913,226.0,225.94,8.25628913]
[1734069278906,8.25628913,226.0,225.89,6.4016]
[1734069278907,8.25628913,225.97,225.89,6.4016]
[1734069279112,8.25628913,225.97,225.91,8.25628913]
[1734069280326,8.25628913,225.97,225.9,8.25628913]
[1734069284132,8.25628913,225.94,225.88,1.6258]
[1734069284313,8.25628913,225.94,225.88,8.25628913]
[1734069284511,8.25628913,225.93,225.87,8.25628913]
[1734069284725,8.25628913,225.92,225.83,8.0637]
[1734069284955,8.25628913,225.92,225.86,8.25628913]
[1734069286434,8.25628913,225.92,225.85,8.25628913]
[1734069286826,8.25628913,225.91,225.85,8.25628913]
[1734069287033,8.25628913,225.9,225.84,8.25628913]
[1734069290136,8.25628913,225.91,225.85,8.25628913]
[1734069292515,8.25628913,225.9,225.84,8.25628913]
[1734069295228,8.25628913,225.94,225.88,8.25628913]
[1734069298552,8.25628913,225.93,225.87,8.25628913]
[1734069300454,20.0,225.97,225.89,8.25628913]
[1734069300645,8.25628913,225.97,225.91,8.25628913]
[1734069300847,8.25628913,225.98,225.92,8.25628913]
[1734069303363,8.25628913,226.0,225.94,8.25628913]
[1734069305357,0.12549,226.01,225.94,8.25628913]
[1734069305539,8.25628913,226.0,225.94,8.25628913]
[1734069306158,0.12549,226.01,225.93,8.25628913]
[1734069306159,8.25628913,225.99,225.93,8.25628913]
[1734069306344,8.25628913,225.98,225.92,8.25628913]
[1734069313941,20.0,226.02,225.93,8.25628913]
[1734069314250,8.25628913,225.99,225.93,8.25628913]
[1734069315143,8.25628913,225.99,225.94,8.25628913]
[1734069317458,0.12549,226.04,225.94,8.25628913]
[1734069317661,8.25628913,226.0,225.94,8.25628913]
[1734069319489,8.25628913,225.99,225.9,7.6873]
[1734069319783,0.12549,226.04,225.92,8.25628913]
[1734069319784,8.25628913,225.98,225.92,8.25628913]
[1734069323556,8.25628913,225.96,225.9,7.6873]
[1734069323744,8.25628913,225.96,225.9,15.94358913]
[1734069324356,8.25628913,225.96,225.9,7.6873]
[1734069324569,8.25628913,225.92,225.84,7.8548]
[1734069324796,8.25628913,225.92,225.86,8.25628913]
[1734069325151,8.25628913,225.92,225.84,7.8548]
[1734069325472,8.25628913,225.91,225.85,8.25628913]
[1734069325871,8.25628913,225.91,225.84,7.8548]
[1734069326081,8.25628913,225.91,225.85,8.25628913]
[1734069334464,8.25628913,225.88,225.79,1.6155]
[1734069334669,8.25628913,225.86,225.8,8.25628913]
[1734069334994,8.25628913,225.86,225.79,1.6155]
[1734069335188,8.25628913,225.86,225.8,8.25628913]
[1734069336891,8.25628913,225.86,225.79,1.6155]
[1734069337075,8.25628913,225.86,225.8,8.25628913]
[1734069337471,8.25628913,225.85,225.8,8.25628913]
[1734069338370,8.25628913,225.86,225.8,8.25628913]
[1734069338779,8.25628913,225.86,225.79,1.6155]
[1734069338991,8.25628913,225.86,225.81,8.25628913]
[1734069339895,8.25628913,225.86,225.79,1.6155]
[1734069340108,8.25628913,225.86,225.8,8.25628913]
[1734069342501,8.25628913,225.85,225.8,8.25628913]
[1734069342793,8.25628913,225.85,225.75,0.5435078]
[1734069342982,8.25628913,225.85,225.79,8.25628913]
[1734069344895,8.25628913,225.85,225.8,8.25628913]
[1734069346387,8.25628913,225.86,225.8,8.25628913]
[1734069350098,20.0,225.88,225.8,8.25628913]
[1734069350398,8.25628913,225.86,225.8,8.25628913]
[1734069353896,8.25628913,225.84,225.78,8.25628913]
[1734069354101,8.25628913,225.84,225.77,8.25628913]
[1734069354290,8.25628913,225.84,225.75,0.5435078]
[1734069354291,8.25628913,225.82,225.76,8.25628913]
[1734069355590,8.25628913,225.8,225.75,0.5435078]
[1734069355807,8.25628913,225.79,225.75,0.5435078]
[1734069357491,8.25628913,225.77,225.75,0.5435078]
[1734069357691,8.25628913,225.78,225.75,0.5435078]
[1734069357914,11.0698,225.84,225.75,0.5435078]
[1734069357915,8.25628913,225.79,225.75,0.5435078]
[1734069358420,11.0698,225.84,225.75,0.5435078]
[1734069358421,8.25628913,225.78,225.75,0.5435078]
[1734069360601,8.25628913,225.77,225.75,0.5435078]
[1734069362704,8.25628913,225.76,225.75,0.5435078]
[1734069362909,8.38177913,225.76,225.75,0.5435078]
[1734069364707,20.0,225.76,225.75,0.5435078]
[1734069364912,28.25628913,225.76,225.75,0.5435078]
[1734069365427,20.0,225.76,225.75,0.5435078]
[1734069365626,28.25628913,225.76,225.75,0.5435078]
[1734069366806,20.0,225.76,225.75,0.5435078]
[1734069367022,28.25628913,225.76,225.75,0.5435078]
[1734069368502,8.25628913,225.76,225.75,0.5435078]
[1734069368930,5.18511351,225.79,225.75,0.5435078]
[1734069369139,8.25628913,225.8,225.75,0.5435078]
[1734069369506,0.12549,225.83,225.75,0.5435078]
[1734069369507,8.25628913,225.81,225.75,0.5435078]
[1734069370935,8.25628913,225.81,225.75,8.79979693]
[1734069371631,12.92487887,225.84,225.75,8.79979693]
[1734069371830,8.25628913,225.81,225.75,8.79979693]
[1734069372011,12.92487887,225.84,225.77,8.25628913]
[1734069372216,8.25628913,225.83,225.76,8.25628913]
[1734069372737,8.25628913,225.83,225.77,8.25628913]
[1734069372944,8.25628913,225.85,225.78,8.25628913]
[1734069373436,12.92487887,225.89,225.79,8.25628913]
[1734069373730,8.25628913,225.86,225.8,8.25628913]
[1734069373906,8.25628913,225.85,225.78,8.25628913]
[1734069374109,8.25628913,225.84,225.77,8.25628913]
[1734069375073,8.25628913,225.85,225.78,8.25628913]
[1734069375611,8.25628913,225.85,225.79,8.25628913]
[1734069376229,12.92487887,225.89,225.8,8.25628913]
[1734069376439,8.25628913,225.88,225.82,8.25628913]
[1734069376634,8.25628913,225.89,225.83,8.25628913]
[1734069376934,8.25628913,225.89,225.82,8.25628913]
[1734069377616,8.25628913,225.9,225.83,8.25628913]
[1734069377816,20.74471738,225.92,225.85,8.25628913]
[1734069378033,20.74471738,225.92,225.87,8.25628913]
[1734069378944,8.25628913,225.91,225.8,23.776884]
[1734069379245,8.25628913,225.89,225.82,8.25628913]
[1734069380620,8.25628913,225.9,225.83,8.25628913]
[1734069380821,8.25628913,225.9,225.84,8.25628913]
[1734069381225,8.25628913,225.91,225.85,7.25628913]
[1734069381438,20.74471738,225.92,225.85,7.25628913]
[1734069381643,29.00100651,225.92,225.85,7.25628913]
[1734069382145,8.25628913,225.91,225.85,7.25628913]
[1734069382320,8.25628913,225.9,225.84,8.25628913]
[1734069382622,8.25628913,225.88,225.82,8.25628913]
[1734069383030,8.25628913,225.88,225.78,1.5236]
[1734069383236,8.25628913,225.88,225.82,8.25628913]
[1734069383631,8.25628913,225.87,225.8,8.25628913]
[1734069384246,8.25628913,225.86,225.8,8.25628913]
[1734069385746,20.0,225.89,225.8,8.25628913]
[1734069385925,8.25628913,225.87,225.8,8.25628913]
[1734069388621,8.25628913,225.87,225.81,8.25628913]
[1734069388825,8.25628913,225.9,225.84,8.25628913]
[1734069389731,0.12549,225.91,225.84,8.25628913]
[1734069389924,8.25628913,225.9,225.84,8.25628913]
[1734069391037,8.25628913,225.91,225.85,8.25628913]
[1734069391441,8.25628913,225.91,225.84,8.25628913]
[1734069392370,20.74471738,225.92,225.86,8.25628913]
[1734069392575,29.00100651,225.92,225.86,8.25628913]
[1734069392760,8.25628913,225.91,225.85,8.25628913]
[1734069393149,8.25628913,225.91,225.84,8.25628913]
[1734069393347,8.25628913,225.91,225.84,2.01563365]
[1734069394177,8.25628913,225.91,225.85,8.25628913]
[1734069394475,29.00100651,225.92,225.85,8.25628913]
[1734069394662,8.25628913,225.91,225.85,8.25628913]
[1734069396467,20.74471738,225.92,225.86,8.25628913]
[1734069396779,29.00100651,225.92,225.86,8.25628913]
[1734069397569,29.00100651,225.92,225.86,8.49297833]
[1734069398968,8.25628913,225.91,225.86,0.2366892]
[1734069400385,8.25628913,225.9,225.86,0.2366892]
[1734069400559,8.25628913,225.89,225.86,0.2366892]
[1734069401090,8.25628913,225.88,225.86,0.2366892]
[1734069401665,0.12549,225.91,225.86,0.2366892]
[1734069401865,8.25628913,225.88,225.86,0.2366892]
[1734069402793,8.25628913,225.87,225.86,0.2366892]
[1734069404069,8.25628913,225.88,225.86,0.2366892]
[1734069404494,0.12549,225.91,225.86,0.2366892]
[1734069404685,8.25628913,225.88,225.86,0.2366892]
[1734069407291,8.25628913,225.89,225.86,0.2366892]
[1734069408384,8.25628913,225.9,225.86,0.2366892]
[1734069409191,20.74471738,225.92,225.86,0.2366892]
[1734069409192,20.74471738,225.92,225.86,8.49297833]
[1734069409385,20.74471738,225.92,225.87,8.25628913]
[1734069412615,20.74471738,225.92,225.87,8.49297833]
[1734069414398,20.74471738,225.92,225.89,8.25628913]
[1734069414977,20.74471738,225.92,225.87,0.2366892]
[1734069415175,29.00100651,225.92,225.87,0.2366892]
[1734069415773,8.25628913,225.89,225.87,0.2366892]
[1734069415974,8.25628913,225.9,225.87,0.2366892]
[1734069417677,8.25628913,225.89,225.87,0.2366892]
[1734069419202,8.38177913,225.88,225.87,0.2366892]
[1734069424401,8.25628913,225.88,225.87,0.2366892]
[1734069428302,1.5183,225.9,225.87,0.2366892]
[1734069428608,20.0,225.88,225.87,0.2366892]
[1734069428903,20.74471738,225.92,225.87,8.49297833]
[1734069429109,20.74471738,225.92,225.89,8.25628913]
[1734069429295,20.74471738,225.92,225.87,0.2366892]
[1734069429296,20.74471738,225.92,225.9,8.25628913]
[1734069433225,20.74471738,225.92,225.87,0.2366892]
[1734069433407,20.74471738,225.92,225.89,8.25628913]
[1734069433607,4.84742847,226.0,225.87,0.2366892]
[1734069433608,8.25628913,225.96,225.9,8.25628913]
[1734069437109,8.25628913,225.96,225.87,0.2366892]
[1734069437309,8.25628913,225.96,225.9,8.25628913]
[1734069441327,8.25628913,225.96,225.89,8.25628913]
[1734069442353,8.25628913,225.92,225.87,0.2366892]
[1734069442564,8.25628913,225.91,225.87,0.2366892]
[1734069444119,8.25628913,225.92,225.87,0.2366892]
[1734069447933,8.25628913,225.91,225.87,0.2366892]
[1734069451340,8.25628913,225.9,225.87,0.2366892]
[1734069451583,8.25628913,225.91,225.87,0.2366892]
[1734069453147,20.12549,225.97,225.87,0.2366892]
[1734069453351,8.25628913,225.91,225.87,0.2366892]
[1734069455681,8.25628913,225.92,225.87,0.2366892]
[1734069455973,45.90972847,226.0,225.89,8.25628913]
[1734069455974,4.84742847,226.0,225.89,8.25628913]
[1734069456264,8.25628913,225.97,225.91,8.25628913]
[1734069457251,8.25628913,225.98,225.92,8.25628913]
[1734069459249,8.25628913,225.97,225.91,8.25628913]
[1734069459455,8.25628913,225.96,225.9,8.25628913]
[1734069461255,8.25628913,225.95,225.89,8.25628913]
[1734069461459,8.25628913,225.95,225.88,8.49297833]
[1734069462573,8.25628913,225.95,225.89,8.25628913]
[1734069466691,8.25628913,225.96,225.9,8.25628913]
[1734069470907,28.25628913,225.98,225.91,8.25628913]
[1734069471504,20.0,226.0,225.91,8.25628913]
[1734069471798,8.25628913,225.98,225.92,5.76068996]
[1734069474486,8.25628913,225.99,225.93,8.25628913]
[1734069478397,8.25628913,226.0,225.93,8.25628913]
[1734069480616,8.25628913,225.99,225.89,1.6512]
[1734069480898,8.25628913,225.94,225.89,1.6512]
[1734069481886,8.25628913,225.92,225.88,0.2366892]
[1734069482395,8.25628913,225.93,225.88,0.2366892]
[1734069484705,8.25628913,225.92,225.88,0.2366892]
[1734069485105,8.25628913,225.91,225.88,0.2366892]
[1734069485306,8.25628913,225.89,225.88,0.2366892]
[1734069489291,8.25628913,225.9,225.88,0.2366892]
[1734069490191,8.25628913,225.89,225.88,0.2366892]
[1734069490394,8.25628913,225.9,225.88,0.2366892]
[1734069491422,8.25628913,225.89,225.88,0.2366892]
[1734069492589,8.25628913,225.9,225.88,0.2366892]
[1734069493492,23.776884,225.97,225.88,0.2366892]
[1734069493707,28.25628913,225.94,225.88,8.49297833]
[1734069494799,8.25628913,225.93,225.88,0.2366892]
[1734069495394,8.25628913,225.92,225.88,0.2366892]
[1734069496013,8.25628913,225.91,225.88,0.2366892]
[1734069497518,8.25628913,225.92,225.88,0.2366892]
[1734069501699,8.25628913,225.91,225.88,0.2366892]
[1734069502019,8.25628913,225.9,225.88,0.2366892]
[1734069507637,0.12549,225.94,225.88,0.2366892]
[1734069507951,8.25628913,225.91,225.88,0.2366892]
[1734069508515,8.25628913,225.9,225.88,0.2366892]
[1734069510443,8.25628913,225.89,225.88,0.2366892]
[1734069512838,8.38177913,225.89,225.88,0.2366892]
[1734069513622,32.15866313,225.89,225.88,0.2366892]
[1734069513843,23.902374,225.89,225.88,0.2366892]
[1734069514051,32.15866313,225.89,225.88,0.2366892]
[1734069517040,23.902374,225.89,225.88,0.2366892]
[1734069517243,32.15866313,225.89,225.88,0.2366892]
[1734069518157,8.38177913,225.89,225.88,0.2366892]
[1734069519164,20.12549,225.89,225.88,0.2366892]
[1734069519336,28.38177913,225.89,225.88,0.2366892]
[1734069525849,20.12549,225.89,225.88,0.2366892]
[1734069526053,28.38177913,225.89,225.88,0.2366892]
[1734069527848,52.15866313,225.89,225.88,0.2366892]
[1734069528950,43.902374,225.89,225.88,0.2366892]
[1734069529150,52.15866313,225.89,225.88,0.2366892]
[1734069529545,28.38177913,225.89,225.88,0.2366892]
[1734069530640,20.12549,225.89,225.88,0.2366892]
[1734069530845,28.25628913,225.89,225.88,0.2366892]
[1734069533060,20.0,225.89,225.88,0.2366892]
[1734069533250,28.25628913,225.89,225.88,0.2366892]
[1734069533851,52.15866313,225.89,225.88,0.2366892]
[1734069534049,64.30608693,225.89,225.88,0.2366892]
[1734069539980,32.1474238,225.89,225.88,0.2366892]
[1734069540155,28.25628913,225.89,225.88,0.2366892]
[1734069547066,52.15866313,225.89,225.88,0.2366892]
[1734069550657,28.38177913,225.89,225.88,0.2366892]
[1734069551473,52.15866313,225.89,225.88,0.2366892]
[1734069551660,64.30608693,225.89,225.88,0.2366892]
[1734069557186,0.12549,225.87,225.75,6.4537]
[1734069557496,8.25628913,225.79,225.75,6.4537]
[1734069557870,8.25628913,225.78,225.75,6.4537]
[1734069558076,8.25628913,225.77,225.75,6.4537]
[1734069558587,8.25628913,225.78,225.75,6.4537]
[1734069558762,8.25628913,225.78,225.74,1.5591]
[1734069559471,8.25628913,225.77,225.74,1.5591]
[1734069560890,8.25628913,225.76,225.7,6.2119]
[1734069561075,8.25628913,225.76,225.7,14.46818913]
[1734069561276,8.25628913,225.77,225.71,8.25628913]
[1734069561879,8.25628913,225.77,225.71,8.16537883]